{"text_format":"1","workbook":"xlsx","n_sheets":7,"sheets":["paramètres FTP","paramètres choix fichiers","fichiers du répertoire cible","Score","M11F","Table de marque","A3-M11F"],"not_rendered":{"charts":0,"images":12,"macros":1,"external_links":0,"defined_names":116,"comments":2,"pivot_tables":0},"unopened":[],"bounds":{"document_bytes":16777216,"sheet_cells":100000,"rows_first":2000,"rows_last":500,"rows_between":2000,"halvings":0,"cell_chars":16384,"cell_head_chars":4096},"cells_cut":0,"cells_raw":0,"read":"whole","date_system":"1900"}

{"sheet":"paramètres FTP","index":0,"n_rows":17,"n_cols":4,"rows_kept":17,"cut":false,"hidden":true,"merged":[]}
[]
[]
[null,"Paramètres par défaut (FTP)"]
[]
[]
[null,null,null,{"$f":"LEFT(CELL(\"filename\",C1),FIND(\"[\",CELL(\"filename\",C1))-2)&\"\\result.html\"","v":"C:\\Users\\fseys\\Dropbox (Compte personnel)\\! ! ! ! Tournoi Noël 2022\\! Tournoi\\result.html"}]
[null,"adresse du site FTP",null,"ftp.cluster027.hosting.ovh.net"]
[]
[null,"Port FTP",null,21]
[]
[null,"Répertoire vers lequel les fichiers doivent être transférés",null,"/www/TIN2022/"]
[]
[null,"Login",null,"sshbfryhnr"]
[]
[null,"Mot de passe"]
[]
[null,"autres paramètres  dans le code de la macro",":","transfert en mode actif / passif, binaire / ascii"]

{"sheet":"paramètres choix fichiers","index":1,"n_rows":11,"n_cols":4,"rows_kept":11,"cut":false,"hidden":true,"merged":[]}
[]
[]
[null,"Paramètres par défaut (choix des fichiers)"]
[]
[]
[null,null,null,{"$f":"LEFT(CELL(\"filename\",C1),FIND(\"[\",CELL(\"filename\",C1))-2)&\"\\result.html\"","v":"C:\\Users\\fseys\\Dropbox (Compte personnel)\\! ! ! ! Tournoi Noël 2022\\! Tournoi\\result.html"}]
[null,"adresse du répertoire à transférer",null,{"$f":"LEFT(CELL(\"filename\",K1),FIND(\"[\",CELL(\"filename\",K1))-2)","v":"C:\\Users\\fseys\\Dropbox (Compte personnel)\\! ! ! ! Tournoi Noël 2022\\! Tournoi"}]
[]
[null,"âge maxi des fichiers (en jours)",null,"5"]
[]
[null,"types de fichiers à transférer (séparer par des virgules)",null,"html"]

{"sheet":"fichiers du répertoire cible","index":2,"n_rows":6,"n_cols":4,"rows_kept":6,"cut":false,"hidden":true,"merged":[]}
[]
[]
[]
[]
[]
[null,null,null,{"$f":"LEFT(CELL(\"filename\",C1),FIND(\"[\",CELL(\"filename\",C1))-2)&\"\\result.html\"","v":"C:\\Users\\fseys\\Dropbox (Compte personnel)\\! ! ! ! Tournoi Noël 2022\\! Tournoi\\result.html"}]

{"sheet":"Score","index":3,"n_rows":102,"n_cols":41,"rows_kept":102,"cut":false,"hidden":false,"merged":[[6,1,6,8],[6,19,6,26],[29,8,30,8],[35,8,36,8]]}
["POULE A","POULE B",null,null,null,null,null,"Durées",null,null,"09:00:00",null,null,null,null,null,null,null,null,"POULE ESPOIR","POULE ELITE",null,null,null,null,null,null,{"$f":"LEFT(CELL(\"filename\",K1),FIND(\"[\",CELL(\"filename\",K1))-2)&\"\\\"&\"2022-tournoi_m_11F.html\"","v":"C:\\Users\\fseys\\Dropbox (Compte personnel)\\! ! ! ! Tournoi Noël 2022\\! Tournoi\\2022-tournoi_m_11F.html"}]
["ATH","ESSAHB",null,null,null,null,null,null,"Mise en place",null,"00:02:00",null,null,null,null,null,null,null,null,{"$f":"IF(ISBLANK(E24),\"4eme Poule A\",_4eme_poule_A_M11)","v":"4eme Poule A"},{"$f":"IF(ISBLANK(E24),\"2eme Poule A\",_2eme_poule_A_M11)","v":"2eme Poule A"},null,null,null,null,null,null,"Date de derni&egrave;re modification : 13/12/2022 22:57:14"]
["BISCHWILLER 2","BISCHWILLER 1",null,null,null,null,null,null,"durée Match Clas",null,"00:12:00",null,null,null,null,null,null,null,null,{"$f":"IF(ISBLANK(E24),\"4eme Poule B\",_4eme_poule_B_M11)","v":"4eme Poule B"},{"$f":"IF(ISBLANK(E24),\"2eme Poule B\",_2eme_poule_B_M11)","v":"2eme Poule B"}]
["SELESTAT AHB","HBC VAL DE MODER",null,null,null,null,null,"extra time","Pause midi",null,"01:01:00",null,null,null,null,null,null,null,null,{"$f":"IF(ISBLANK(E24),\"3eme Poule A\",_3eme_poule_A_M11)","v":"3eme Poule A"},{"$f":"IF(ISBLANK(E24),\"1er Poule A\",_1er_poule_A_M11)","v":"1er Poule A"}]
["ASPTT","STRASBOURG UC",null,null,null,null,null,"00:05:00","Exclusions",null,"00:01:00",null,null,null,null,null,null,null,null,{"$f":"IF(ISBLANK(E24),\"3eme Poule B\",_3eme_poule_B_M11)","v":"3eme Poule B"},{"$f":"IF(ISBLANK(E24),\"1er Poule B\",_1er_poule_B_M11)","v":"1er Poule B"}]
[null,null,null,null,null,null,null,null,null,null,null,null,null,null,null,null,null,null,null,null,{"$f":"IF(ISBLANK(E27),\"\",_2eme_poule_B_M11)","v":""}]
[null,"PHASE 1 : POULES DE BRASSAGE",null,null,null,null,null,null,null,null,null,null,null,null,null,null,null,null,null,"PHASE 2 : POULES DE CLASSEMENT"]
[]
[null,"GYMNASE LOUVOIS",null,null,null,null,null,null,null,null,null,null,null,null,null,null,null,null,null,"GYMNASE LOUVOIS"]
[]
[null,"Recevants","Visiteurs","Sc-R","Sc-V","Pt-R","Pt-V","Arbitrage","Sanctions",null,null,null,null,null,null,null,null,null,null,"Recevants","Visiteurs","Sc-R","Sc-V","Pt-R","Pt-V","Arbitrage","Sanctions",null,null,null,null,null,null,null,null,null,null,null,"Couleurs"]
["Poules",null,null,null,null,null,null,null,null,null,null,null,null,null,null,null,null,null,null,null,null,null,null,null,null,null,null,null,null,null,null,null,null,null,null,null,null,null,"Poule A","Poule B","Poule C"]
[{"$f":"HOUR(AI13)&\"h\"&TEXT(MINUTE(AI13),\"00\")","v":"9h00"},{"$f":"equi_11G_PA_1","v":"ATH"},{"$f":"equi_11G_PA_4","v":"ASPTT"},null,null,{"$f":"IF(ISBLANK(D13),\"-\",IF(D13=E13,2,IF(D13<E13,1,3)))","v":"-"},{"$f":"IF(ISBLANK(D13),\"-\",IF(D13=E13,2,IF(D13>E13,1,3)))","v":"-"},null,null,null,null,null,null,null,null,null,null,{"$f":"HOUR(AJ13)&\"h\"&TEXT(MINUTE(AJ13),\"00\")","v":"13h04"},null,{"$f":"equi_13G_PB_1","v":"4eme Poule A"},{"$f":"equi_13G_PB_4","v":"3eme Poule B"},null,null,{"$f":"IF(ISBLANK(V13),\"-\",IF(V13=W13,2,IF(V13<W13,1,3)))","v":"-"},{"$f":"IF(ISBLANK(V13),\"-\",IF(V13=W13,2,IF(V13>W13,1,3)))","v":"-"},null,null,null,null,null,null,null,null,null,{"$f":"départ","v":"09:00:00"},{"$f":"AI25+MeP+Durée2","v":"13:04:00"},null,"Titre","CC9900","CC6666","CC66FF"]
["9h19",{"$f":"equi_11G_PB_1","v":"ESSAHB"},{"$f":"equi_11G_PB_4","v":"STRASBOURG UC"},null,null,{"$f":"IF(ISBLANK(D14),\"-\",IF(D14=E14,2,IF(D14<E14,1,3)))","v":"-"},{"$f":"IF(ISBLANK(D14),\"-\",IF(D14=E14,2,IF(D14>E14,1,3)))","v":"-"},"5min d'échauff",null,null,null,null,null,null,null,null,null,"13h18",null,{"$f":"equi_13G_PC_1","v":"2eme Poule A"},{"$f":"equi_13G_PC_4","v":"1er Poule B"},null,null,{"$f":"IF(ISBLANK(V14),\"-\",IF(V14=W14,2,IF(V14<W14,1,3)))","v":"-"},{"$f":"IF(ISBLANK(V14),\"-\",IF(V14=W14,2,IF(V14>W14,1,3)))","v":"-"},null,null,null,null,null,null,null,null,null,{"$f":"AI13+MeP+Durée+extra_time","v":"09:19:00"},{"$f":"AJ13+MeP+Durée","v":"13:18:00"},null,"S Titre","FFCC99","FFA4A4","FFCCFF"]
["9h38",{"$f":"equi_11G_PA_2","v":"BISCHWILLER 2"},{"$f":"equi_11G_PA_3","v":"SELESTAT AHB"},null,null,"-","-","5min d'échauff",null,null,null,null,null,null,null,null,null,"13h32",null,{"$f":"equi_13G_PB_2","v":"4eme Poule B"},{"$f":"equi_13G_PB_3","v":"3eme Poule A"},null,null,"-","-",null,null,null,null,null,null,null,null,null,{"$f":"AI14+MeP+Durée+extra_time","v":"09:38:00"},{"$f":"AJ14+MeP+Durée","v":"13:32:00"},null,"Corps","FFCC33","FF6666","FF66FF"]
["9h57",{"$f":"equi_11G_PB_2","v":"BISCHWILLER 1"},{"$f":"equi_11G_PB_3","v":"HBC VAL DE MODER"},null,null,"-","-","5min d'échauff",null,null,null,null,null,null,null,null,null,"13h46",null,{"$f":"equi_13G_PC_2","v":"2eme Poule B"},{"$f":"equi_13G_PC_3","v":"1er Poule A"},null,null,"-","-",null,null,null,null,null,null,null,null,null,{"$f":"AI15+MeP+Durée+extra_time","v":"09:57:00"},"13:46:00"]
["10h11",{"$f":"equi_11G_PA_3","v":"SELESTAT AHB"},{"$f":"equi_11G_PA_1","v":"ATH"},null,null,"-","-",null,null,null,null,null,null,null,null,null,null,"14h00",null,{"$f":"equi_13G_PB_3","v":"3eme Poule A"},{"$f":"equi_13G_PB_1","v":"4eme Poule A"},null,null,"-","-",null,null,null,null,null,null,null,null,null,{"$f":"AI16+MeP+Durée","v":"10:11:00"},"14:00:00",null,"Quart","00FF00"]
["10h25",{"$f":"equi_11G_PB_3","v":"HBC VAL DE MODER"},{"$f":"equi_11G_PB_1","v":"ESSAHB"},null,null,"-","-",null,null,null,null,null,null,null,null,null,null,"14h14",null,{"$f":"equi_13G_PC_3","v":"1er Poule A"},{"$f":"equi_13G_PC_1","v":"2eme Poule A"},null,null,"-","-",null,null,null,null,null,null,null,null,null,"10:25:00","14:14:00",null,"classement","50BF40"]
["10h39",{"$f":"equi_11G_PA_2","v":"BISCHWILLER 2"},{"$f":"equi_11G_PA_4","v":"ASPTT"},null,null,"-","-",null,null,null,null,null,null,null,null,null,null,"14h28",null,{"$f":"equi_13G_PB_2","v":"4eme Poule B"},{"$f":"equi_13G_PB_4","v":"3eme Poule B"},null,null,"-","-",null,null,null,null,null,null,null,null,null,"10:39:00","14:28:00",null,"Quart","00FFFF"]
["10h53",{"$f":"equi_11G_PB_2","v":"BISCHWILLER 1"},{"$f":"equi_11G_PB_4","v":"STRASBOURG UC"},null,null,"-","-",null,null,null,null,null,null,null,null,null,null,"14h42",null,{"$f":"equi_13G_PC_2","v":"2eme Poule B"},{"$f":"equi_13G_PC_4","v":"1er Poule B"},null,null,"-","-",null,null,null,null,null,null,null,null,null,"10:53:00","14:42:00",null,"classement","00CCFF"]
["11h07",{"$f":"equi_11G_PA_1","v":"ATH"},{"$f":"equi_11G_PA_2","v":"BISCHWILLER 2"},null,null,"-","-",null,null,null,{"$f":"AI21+Durée","v":"11:19:00"},null,null,null,null,null,null,"14h56",null,{"$f":"equi_13G_PB_1","v":"4eme Poule A"},{"$f":"equi_13G_PB_2","v":"4eme Poule B"},null,null,"-","-",null,null,null,null,null,null,null,null,null,"11:07:00","14:56:00"]
["11h21",{"$f":"equi_11G_PB_1","v":"ESSAHB"},{"$f":"equi_11G_PB_2","v":"BISCHWILLER 1"},null,null,"-","-",null,null,null,{"$f":"AI22+Durée","v":"11:33:00"},null,null,null,null,null,null,"15h10",null,{"$f":"equi_13G_PC_1","v":"2eme Poule A"},{"$f":"equi_13G_PC_2","v":"2eme Poule B"},null,null,"-","-",null,null,null,null,null,null,null,null,null,"11:21:00","15:10:00"]
["11h35",{"$f":"equi_11G_PA_4","v":"ASPTT"},{"$f":"equi_11G_PA_3","v":"SELESTAT AHB"},null,null,"-","-",null,null,null,{"$f":"AI23+Durée","v":"11:47:00"},null,null,null,null,null,null,"15h24",null,{"$f":"equi_13G_PB_4","v":"3eme Poule B"},{"$f":"equi_13G_PB_3","v":"3eme Poule A"},null,null,"-","-",null,null,null,null,null,null,null,null,null,"11:35:00","15:24:00"]
["11h47",{"$f":"equi_11G_PB_4","v":"STRASBOURG UC"},{"$f":"equi_11G_PB_3","v":"HBC VAL DE MODER"},null,null,"-","-",null,null,null,{"$f":"AI24+Durée","v":"11:59:00"},null,null,null,null,null,null,"15h38",null,{"$f":"equi_13G_PC_4","v":"1er Poule B"},{"$f":"equi_13G_PC_3","v":"1er Poule A"},null,null,"-","-",null,null,null,null,null,null,null,null,null,{"$f":"AI23+Durée","v":"11:47:00"},"15:38:00"]
["12h01",null,null,null,null,"-","-",null,null,null,null,null,null,null,null,null,null,"15h52",null,null,null,null,null,"-","-",null,null,null,null,null,null,null,null,null,{"$f":"AI24+MeP+Durée","v":"12:01:00"},"15:52:00"]
[null,null,null,null,null,null,null,null,null,null,null,null,null,null,null,null,null,"16h06",null,null,null,null,null,null,null,null,null,null,null,null,null,null,null,null,null,"16:06:00"]
[]
[null,null,"Poule A","Pts","B+","B-","DifF",null,null,null,null,null,null,null,null,null,null,null,null,null,"POULE ELITE","Pts","B+","B-","DifF"]
[null,null,{"$f":"equi_11G_PA_2","v":"BISCHWILLER 2"},{"$f":"SUMIF($B$13:$B$25,equi_11G_PA_2,$F$13:$F$25)+SUMIF($C$13:$C$25,equi_11G_PA_2,$G$13:$G$25)","v":0},{"$f":"SUMIF($B$13:$B$25,equi_11G_PA_2,$D$13:$D$25)+SUMIF($C$13:$C$25,equi_11G_PA_2,$E$13:$E$25)","v":0},{"$f":"SUMIF($B$13:$B$25,equi_11G_PA_2,$E$13:$E$25)+SUMIF($C$13:$C$25,equi_11G_PA_2,$D$13:$D$25)","v":0},{"$f":"E29-F29","v":0},null,null,null,null,null,null,null,null,null,null,null,null,null,{"$f":"IF(ISBLANK($E$24),\"\",_1er_poule_B_M11)","v":""},{"$f":"SUMIF($T$13:$T$25,_1er_poule_B_M11,$X$13:$X$25)+SUMIF($U$13:$U$25,_1er_poule_B_M11,$Y$13:$Y$25)","v":0},{"$f":"SUMIF($T$13:$T$25,_1er_poule_B_M11,$V$13:$V$25)+SUMIF($U$13:$U$25,_1er_poule_B_M11,$W$13:$W$25)","v":0},{"$f":"SUMIF($T$13:$T$25,_1er_poule_B_M11,$W$13:$W$25)+SUMIF($U$13:$U$25,_1er_poule_B_M11,$V$13:$V$25)","v":0},{"$f":"W29-X29","v":0},"Si égalité => A"]
[null,null,{"$f":"equi_11G_PA_3","v":"SELESTAT AHB"},{"$f":"SUMIF($B$13:$B$25,equi_11G_PA_3,$F$13:$F$25)+SUMIF($C$13:$C$25,equi_11G_PA_3,$G$13:$G$25)","v":0},{"$f":"SUMIF($B$13:$B$25,equi_11G_PA_3,$D$13:$D$25)+SUMIF($C$13:$C$25,equi_11G_PA_3,$E$13:$E$25)","v":0},{"$f":"SUMIF($B$13:$B$25,equi_11G_PA_3,$E$13:$E$25)+SUMIF($C$13:$C$25,equi_11G_PA_3,$D$13:$D$25)","v":0},{"$f":"E30-F30","v":0},null,"Si égalité => A",null,null,null,null,null,null,null,null,null,null,null,{"$f":"IF(ISBLANK($E$24),\"\",_1er_poule_A_M11)","v":""},{"$f":"SUMIF($T$13:$T$25,_1er_poule_A_M11,$X$13:$X$25)+SUMIF($U$13:$U$25,_1er_poule_A_M11,$Y$13:$Y$25)","v":0},{"$f":"SUMIF($T$13:$T$25,_1er_poule_A_M11,$V$13:$V$25)+SUMIF($U$13:$U$25,_1er_poule_A_M11,$W$13:$W$25)","v":0},{"$f":"SUMIF($T$13:$T$25,_1er_poule_A_M11,$W$13:$W$25)+SUMIF($U$13:$U$25,_1er_poule_A_M11,$V$13:$V$25)","v":0},{"$f":"W30-X30","v":0},"Si égalité => A"]
[null,null,{"$f":"equi_11G_PA_4","v":"ASPTT"},{"$f":"SUMIF($B$13:$B$25,equi_11G_PA_4,$F$13:$F$25)+SUMIF($C$13:$C$25,equi_11G_PA_4,$G$13:$G$25)","v":0},{"$f":"SUMIF($B$13:$B$25,equi_11G_PA_4,$D$13:$D$25)+SUMIF($C$13:$C$25,equi_11G_PA_4,$E$13:$E$25)","v":0},{"$f":"SUMIF($B$13:$B$25,equi_11G_PA_4,$E$13:$E$25)+SUMIF($C$13:$C$25,equi_11G_PA_4,$D$13:$D$25)","v":0},{"$f":"E31-F31","v":0},null,null,null,null,null,null,null,null,null,null,null,null,null,{"$f":"IF(ISBLANK($E$24),\"\",_2eme_poule_B_M11)","v":""},{"$f":"SUMIF($T$13:$T$25,_2eme_poule_B_M11,$X$13:$X$25)+SUMIF($U$13:$U$25,_2eme_poule_B_M11,$Y$13:$Y$25)","v":0},{"$f":"SUMIF($T$13:$T$25,_2eme_poule_B_M11,$V$13:$V$25)+SUMIF($U$13:$U$25,_2eme_poule_B_M11,$W$13:$W$25)","v":0},{"$f":"SUMIF($T$13:$T$25,_2eme_poule_B_M11,$W$13:$W$25)+SUMIF($U$13:$U$25,_2eme_poule_B_M11,$V$13:$V$25)","v":0},{"$f":"W31-X31","v":0},"Si égalité => A"]
[null,null,{"$f":"equi_11G_PA_1","v":"ATH"},{"$f":"SUMIF($B$13:$B$25,equi_11G_PA_1,$F$13:$F$25)+SUMIF($C$13:$C$25,equi_11G_PA_1,$G$13:$G$25)","v":0},{"$f":"SUMIF($B$13:$B$25,equi_11G_PA_1,$D$13:$D$25)+SUMIF($C$13:$C$25,equi_11G_PA_1,$E$13:$E$25)","v":0},{"$f":"SUMIF($B$13:$B$25,equi_11G_PA_1,$E$13:$E$25)+SUMIF($C$13:$C$25,equi_11G_PA_1,$D$13:$D$25)","v":0},{"$f":"E32-F32","v":0},null,null,null,null,null,null,null,null,null,null,null,null,null,{"$f":"IF(ISBLANK($E$24),\"\",_2eme_poule_A_M11)","v":""},{"$f":"SUMIF($T$13:$T$25,_2eme_poule_A_M11,$X$13:$X$25)+SUMIF($U$13:$U$25,_2eme_poule_A_M11,$Y$13:$Y$25)","v":0},{"$f":"SUMIF($T$13:$T$25,_2eme_poule_A_M11,$V$13:$V$25)+SUMIF($U$13:$U$25,_2eme_poule_A_M11,$W$13:$W$25)","v":0},{"$f":"SUMIF($T$13:$T$25,_2eme_poule_A_M11,$W$13:$W$25)+SUMIF($U$13:$U$25,_2eme_poule_A_M11,$V$13:$V$25)","v":0},{"$f":"W32-X32","v":0},"Si égalité => A"]
[]
[null,null,"Poule B","Pts","B+","B-","DifF",null,null,null,null,null,null,null,null,null,null,null,null,null,"POULE ESPOIR","Pts","B+","B-","DifF"]
[null,null,{"$f":"equi_11G_PB_1","v":"ESSAHB"},{"$f":"SUMIF($B$13:$B$25,equi_11G_PB_1,$F$13:$F$25)+SUMIF($C$13:$C$25,equi_11G_PB_1,$G$13:$G$25)","v":0},{"$f":"SUMIF($B$13:$B$25,equi_11G_PB_1,$D$13:$D$25)+SUMIF($C$13:$C$25,equi_11G_PB_1,$E$13:$E$25)","v":0},{"$f":"SUMIF($B$13:$B$25,equi_11G_PB_1,$E$13:$E$25)+SUMIF($C$13:$C$25,equi_11G_PB_1,$D$13:$D$25)","v":0},{"$f":"E35-F35","v":0},null,null,null,null,null,null,null,null,null,null,null,null,null,{"$f":"IF(ISBLANK($E$24),\"\",_3eme_poule_A_M11)","v":""},{"$f":"SUMIF($T$13:$T$25,_3eme_poule_A_M11,$X$13:$X$25)+SUMIF($U$13:$U$25,_3eme_poule_A_M11,$Y$13:$Y$25)","v":0},{"$f":"SUMIF($T$13:$T$25,_3eme_poule_A_M11,$V$13:$V$25)+SUMIF($U$13:$U$25,_3eme_poule_A_M11,$W$13:$W$25)","v":0},{"$f":"SUMIF($T$13:$T$25,_3eme_poule_A_M11,$W$13:$W$25)+SUMIF($U$13:$U$25,_3eme_poule_A_M11,$V$13:$V$25)","v":0},{"$f":"W35-X35","v":0},"Si égalité => A"]
[null,null,{"$f":"equi_11G_PB_3","v":"HBC VAL DE MODER"},{"$f":"SUMIF($B$13:$B$25,equi_11G_PB_3,$F$13:$F$25)+SUMIF($C$13:$C$25,equi_11G_PB_3,$G$13:$G$25)","v":0},{"$f":"SUMIF($B$13:$B$25,equi_11G_PB_3,$D$13:$D$25)+SUMIF($C$13:$C$25,equi_11G_PB_3,$E$13:$E$25)","v":0},{"$f":"SUMIF($B$13:$B$25,equi_11G_PB_3,$E$13:$E$25)+SUMIF($C$13:$C$25,equi_11G_PB_3,$D$13:$D$25)","v":0},{"$f":"E36-F36","v":0},null,"Si égalité => A",null,null,null,null,null,null,null,null,null,null,null,{"$f":"IF(ISBLANK($E$24),\"\",_3eme_poule_B_M11)","v":""},{"$f":"SUMIF($T$13:$T$25,_3eme_poule_B_M11,$X$13:$X$25)+SUMIF($U$13:$U$25,_3eme_poule_B_M11,$Y$13:$Y$25)","v":0},{"$f":"SUMIF($T$13:$T$25,_3eme_poule_B_M11,$V$13:$V$25)+SUMIF($U$13:$U$25,_3eme_poule_B_M11,$W$13:$W$25)","v":0},{"$f":"SUMIF($T$13:$T$25,_3eme_poule_B_M11,$W$13:$W$25)+SUMIF($U$13:$U$25,_3eme_poule_B_M11,$V$13:$V$25)","v":0},{"$f":"W36-X36","v":0},"Si égalité => A"]
[null,null,{"$f":"equi_11G_PB_2","v":"BISCHWILLER 1"},{"$f":"SUMIF($B$13:$B$25,equi_11G_PB_2,$F$13:$F$25)+SUMIF($C$13:$C$25,equi_11G_PB_2,$G$13:$G$25)","v":0},{"$f":"SUMIF($B$13:$B$25,equi_11G_PB_2,$D$13:$D$25)+SUMIF($C$13:$C$25,equi_11G_PB_2,$E$13:$E$25)","v":0},{"$f":"SUMIF($B$13:$B$25,equi_11G_PB_2,$E$13:$E$25)+SUMIF($C$13:$C$25,equi_11G_PB_2,$D$13:$D$25)","v":0},{"$f":"E37-F37","v":0},null,null,null,null,null,null,null,null,null,null,null,null,null,{"$f":"IF(ISBLANK($E$24),\"\",_4eme_poule_A_M11)","v":""},{"$f":"SUMIF($T$13:$T$25,_4eme_poule_A_M11,$X$13:$X$25)+SUMIF($U$13:$U$25,_4eme_poule_A_M11,$Y$13:$Y$25)","v":0},{"$f":"SUMIF($T$13:$T$25,_4eme_poule_A_M11,$V$13:$V$25)+SUMIF($U$13:$U$25,_4eme_poule_A_M11,$W$13:$W$25)","v":0},{"$f":"SUMIF($T$13:$T$25,_4eme_poule_A_M11,$W$13:$W$25)+SUMIF($U$13:$U$25,_4eme_poule_A_M11,$V$13:$V$25)","v":0},{"$f":"W37-X37","v":0},"Si égalité => A"]
[null,null,{"$f":"equi_11G_PB_4","v":"STRASBOURG UC"},{"$f":"SUMIF($B$13:$B$25,equi_11G_PB_4,$F$13:$F$25)+SUMIF($C$13:$C$25,equi_11G_PB_4,$G$13:$G$25)","v":0},{"$f":"SUMIF($B$13:$B$25,equi_11G_PB_4,$D$13:$D$25)+SUMIF($C$13:$C$25,equi_11G_PB_4,$E$13:$E$25)","v":0},{"$f":"SUMIF($B$13:$B$25,equi_11G_PB_4,$E$13:$E$25)+SUMIF($C$13:$C$25,equi_11G_PB_4,$D$13:$D$25)","v":0},{"$f":"E38-F38","v":0},null,null,null,null,null,null,null,null,null,null,null,null,null,{"$f":"IF(ISBLANK($E$24),\"\",_4eme_poule_B_M11)","v":""},{"$f":"SUMIF($T$13:$T$25,_4eme_poule_B_M11,$X$13:$X$25)+SUMIF($U$13:$U$25,_4eme_poule_B_M11,$Y$13:$Y$25)","v":0},{"$f":"SUMIF($T$13:$T$25,_4eme_poule_B_M11,$V$13:$V$25)+SUMIF($U$13:$U$25,_4eme_poule_B_M11,$W$13:$W$25)","v":0},{"$f":"SUMIF($T$13:$T$25,_4eme_poule_B_M11,$W$13:$W$25)+SUMIF($U$13:$U$25,_4eme_poule_B_M11,$V$13:$V$25)","v":0},{"$f":"W38-X38","v":0},"Si égalité => A"]
[]
[]
[null,null,"A: Si égalité, goal avérage particulier si toujous égalité, séance jet de 7m",null,null,null,null,null,null,null,null,null,null,null,null,null,null,null,null,null,"A: Si égalité, goal avérage particulier si toujous égalité, séance jet de 7m"]
[null,null,"(séance jet de 7m => 3 tirs pour chaque équipe puis mort subite)",null,null,null,null,null,null,null,null,null,null,null,null,null,null,null,null,null,"(séance jet de 7m => 3 tirs pour chaque équipe puis mort subite)"]
[]
[]
[]
[]
[]
[]
[]
[]
[]
[]
[]
[]
[]
[]
[]
[null,"SSHB","VAL DE MODER"]
[null,"PLOBSHEIM","MUTZIG"]
[null,"CVJM","BENFELD"]
[null,"SARREBOURG","SUC"]
[]
[]
[]
[]
[]
[]
[]
[]
[]
[]
[]
[]
[]
[]
[]
[]
[]
[]
[]
[]
[]
[]
[]
[]
[]
[]
[]
[]
[]
[]
[]
[]
[]
["STRASBOURG SUD"]
["PLOBSHEIM"]
["CVJM"]
["Sarrebourg"]
["VAL DE MODER"]
["MUTZIG"]
["BENFELD"]
["STRASBOURG UC"]

{"sheet":"M11F","index":4,"n_rows":44,"n_cols":32,"rows_kept":44,"cut":false,"hidden":false,"merged":[[35,5,35,7],[2,0,2,6],[6,15,6,20],[7,15,7,16],[7,17,7,20],[8,15,8,16],[8,17,8,20],[9,15,9,16],[9,17,9,20],[10,15,10,16],[10,17,10,20],[11,15,11,16],[11,17,11,20],[4,0,36,0],[4,12,36,12],[31,5,31,7],[6,3,6,8],[7,3,7,4],[8,3,8,4],[32,5,32,7],[9,3,9,4],[10,3,10,4],[11,3,11,4],[11,5,11,8],[33,5,33,7],[34,5,34,7],[7,5,7,8],[8,5,8,8],[9,5,9,8],[10,5,10,8]]}
[]
[]
["TOURNOI INTERNATIONAL NOEL STRASBOURG, 2022",null,null,null,null,null,null,null,null,null,null,null,null,null,null,null,"MOINS DE 11 ANS, FILLES\nDIMANCHE 18 DECEMBRE 22"]
["Suivi de la compétition en direct, Résultats et classements mis à jour en temps réel :",null,null,null,null,null,null,null,null,null,null,null,null,null,null,null,null,null,null,null,null,null,"https://www.sshb.fr/TIN2022/2022m11F.html"]
["PREMIERE PHASE : Poule de brassage",null,null,null,null,null,null,null,null,null,null,null,"DEUXIEME PHASE : Poule de Classement"]
[]
[null,null,null,"GYMNASE DE L'ESPLANADE - CS LOUVOIS",null,null,null,null,null,null,null,null,null,null,null,"GYMNASE DE L'ESPLANADE - CS LOUVOIS"]
[null,null,null,"POULE A",null,"POULE B",null,null,null,null,null,null,null,null,null,"POULE ELITE",null,"POULE ESPOIR"]
[null,null,null,{"$f":"equi_11G_PA_1","v":"ATH"},null,{"$f":"equi_11G_PB_1","v":"ESSAHB"},null,null,null,null,null,null,null,null,null,"1er Poule A",{"$f":"_2eme_poule_A_M11","v":"SELESTAT AHB"},"3ème Poule A",{"$f":"_4eme_poule_A_M11","v":"ATH"},{"$f":"_4eme_poule_A_M11","v":"ATH"},{"$f":"_4eme_poule_A_M11","v":"ATH"}]
[null,null,null,{"$f":"equi_11G_PA_2","v":"BISCHWILLER 2"},null,{"$f":"equi_11G_PB_2","v":"BISCHWILLER 1"},null,null,null,null,null,null,null,null,null,"1er Poule B",{"$f":"_2eme_poule_B_M11","v":"HBC VAL DE MODER"},"3ème Poule B",{"$f":"_4eme_poule_B_M11","v":"STRASBOURG UC"},{"$f":"_4eme_poule_B_M11","v":"STRASBOURG UC"},{"$f":"_4eme_poule_B_M11","v":"STRASBOURG UC"}]
[null,null,null,{"$f":"equi_11G_PA_3","v":"SELESTAT AHB"},null,{"$f":"equi_11G_PB_3","v":"HBC VAL DE MODER"},null,null,null,null,null,null,null,null,null,"2ème Poule A",{"$f":"_1er_poule_A_M11","v":"BISCHWILLER 2"},"4ème Poule A",{"$f":"_3eme_poule_A_M11","v":"ASPTT"},{"$f":"_3eme_poule_A_M11","v":"ASPTT"},{"$f":"_3eme_poule_A_M11","v":"ASPTT"},null,null,null,null,null,null,null,"Poule Elite",null,null,"Poule Espoir"]
[null,null,null,{"$f":"equi_11G_PA_4","v":"ASPTT"},null,{"$f":"equi_11G_PB_4","v":"STRASBOURG UC"},null,null,null,null,null,null,null,null,null,"2ème Poule B",{"$f":"_1er_poule_B_M11","v":"ESSAHB"},"4ème Poule B",{"$f":"_3eme_poule_B_M11","v":"BISCHWILLER 1"},{"$f":"_3eme_poule_B_M11","v":"BISCHWILLER 1"},{"$f":"_3eme_poule_B_M11","v":"BISCHWILLER 1"},null,null,null,null,null,null,"1er",null,null,"1er"]
[null,null,null,null,null,null,null,null,null,null,null,null,null,null,null,null,null,null,null,null,null,null,null,null,null,null,null,"2ème",null,null,"2ème"]
[null,null,null,"GYMNASE CS LOUVOIS 15 Rue Louvois, 67000 Strasbourg",null,null,null,null,null,{"$f":"Score!H9","v":0},{"$f":"Score!I9","v":0},null,null,null,null,"GYMNASE CS LOUVOIS 15 Rue Louvois, 67000 Strasbourg",null,null,null,null,null,null,null,null,null,null,null,"3ème",null,null,"3ème"]
[null,null,null,{"$f":"Score!B10","v":0},null,null,null,null,null,{"$f":"Score!H10","v":0},{"$f":"Score!I10","v":0},null,null,null,null,{"$f":"Score!R10","v":0}]
[null,null,null,{"$f":"Score!B11","v":"Recevants"},{"$f":"Score!C11","v":"Visiteurs"},{"$f":"Score!D11","v":"Sc-R"},{"$f":"Score!E11","v":"Sc-V"},{"$f":"Score!F11","v":"Pt-R"},{"$f":"Score!G11","v":"Pt-V"},{"$f":"Score!H11","v":"Arbitrage"},{"$f":"Score!I11","v":"Sanctions"},null,null,null,null,{"$f":"Score!R11","v":0},{"$f":"Score!S11","v":0},{"$f":"Score!T11","v":"Recevants"},{"$f":"Score!U11","v":"Visiteurs"},{"$f":"Score!V11","v":"Sc-R"},{"$f":"Score!W11","v":"Sc-V"}]
[null,null,{"$f":"Score!A12","v":"Poules"},{"$f":"Score!B12","v":0},{"$f":"Score!C12","v":0},{"$f":"Score!D12","v":0},{"$f":"Score!E12","v":0},{"$f":"Score!F12","v":0},{"$f":"Score!G12","v":0},{"$f":"Score!H12","v":0},{"$f":"Score!I12","v":0},null,null,null,null,{"$f":"Score!R12","v":0},{"$f":"Score!S12","v":0},{"$f":"Score!T12","v":0},{"$f":"Score!U12","v":0},{"$f":"Score!V12","v":0},{"$f":"Score!W12","v":0}]
[null,null,{"$f":"Score!A13","v":"9h00"},{"$f":"Score!B13","v":"ATH"},{"$f":"Score!C13","v":"ASPTT"},null,null,null,null,null,null,null,null,null,{"$f":"Score!R13","v":"13h04"},"4ème PA","3ème PB",null,null,null,null,null,null,null,null,null,null,"4ème",null,null,"4ème"]
[null,null,{"$f":"Score!A14","v":"9h19"},{"$f":"Score!B14","v":"ESSAHB"},{"$f":"Score!C14","v":"STRASBOURG UC"},null,null,null,null,null,null,null,null,null,{"$f":"Score!R14","v":"13h18"},"2ème PA","1er PB"]
[null,null,{"$f":"Score!A15","v":"9h38"},{"$f":"Score!B15","v":"BISCHWILLER 2"},{"$f":"Score!C15","v":"SELESTAT AHB"},null,null,null,null,null,null,null,null,null,{"$f":"Score!R15","v":"13h32"},"4ème PB","3ème PA"]
[null,null,{"$f":"Score!A16","v":"9h57"},{"$f":"Score!B16","v":"BISCHWILLER 1"},{"$f":"Score!C16","v":"HBC VAL DE MODER"},null,null,null,null,null,null,null,null,null,{"$f":"Score!R16","v":"13h46"},"2ème PB","1er PA"]
[null,null,{"$f":"Score!A17","v":"10h11"},{"$f":"Score!B17","v":"SELESTAT AHB"},{"$f":"Score!C17","v":"ATH"},null,null,null,null,null,null,null,null,null,{"$f":"Score!R17","v":"14h00"},"3ème PA","4ème PA"]
[null,null,{"$f":"Score!A18","v":"10h25"},{"$f":"Score!B18","v":"HBC VAL DE MODER"},{"$f":"Score!C18","v":"ESSAHB"},null,null,null,null,null,null,null,null,null,{"$f":"Score!R18","v":"14h14"},"1er PA","2ème PA"]
[null,null,{"$f":"Score!A19","v":"10h39"},{"$f":"Score!B19","v":"BISCHWILLER 2"},{"$f":"Score!C19","v":"ASPTT"},null,null,null,null,null,null,null,null,null,{"$f":"Score!R19","v":"14h28"},"4ème PB","3ème PB"]
[null,null,{"$f":"Score!A20","v":"10h53"},{"$f":"Score!B20","v":"BISCHWILLER 1"},{"$f":"Score!C20","v":"STRASBOURG UC"},null,null,null,null,null,null,null,null,null,{"$f":"Score!R20","v":"14h42"},"2ème PB","1er PB"]
[null,null,{"$f":"Score!A21","v":"11h07"},{"$f":"Score!B21","v":"ATH"},{"$f":"Score!C21","v":"BISCHWILLER 2"},null,null,null,null,null,null,null,null,null,{"$f":"Score!R21","v":"14h56"},"4ème PA","4ème PB"]
[null,null,{"$f":"Score!A22","v":"11h21"},{"$f":"Score!B22","v":"ESSAHB"},{"$f":"Score!C22","v":"BISCHWILLER 1"},null,null,null,null,null,null,null,null,null,{"$f":"Score!R22","v":"15h10"},"2ème PA","2ème PB"]
[null,null,{"$f":"Score!A23","v":"11h35"},{"$f":"Score!B23","v":"ASPTT"},{"$f":"Score!C23","v":"SELESTAT AHB"},null,null,null,null,null,null,null,null,null,{"$f":"Score!R23","v":"15h24"},"3ème PB","3ème PA"]
[null,null,{"$f":"Score!A24","v":"11h47"},{"$f":"Score!B24","v":"STRASBOURG UC"},{"$f":"Score!C24","v":"HBC VAL DE MODER"},null,null,null,null,null,null,null,null,null,{"$f":"Score!R24","v":"15h38"},"1er PB","1er PA"]
[null,null,null,"Pause repas",null,null,null,null,null,null,null,null,null,null,{"$f":"Score!R25","v":"15h52"},"REMISE DES RECOMPENSES"]
[]
[null,null,null,null,"Poule A","Poule B"]
[null,null,null,"1er"]
[null,null,null,"2ème"]
[null,null,null,"3ème"]
[null,null,null,"4ème"]
[]
[]
[]
[]
[]
[]
[null,null,null,null,null,null,null,null,null,null,null,null,null,null,"Qrcode généré par Unitag"]
[null,null,"En cas d'égalité à l'issue des matchs de brassage ou à l'issue des matchs de classement, Goal avérage particuler puis séance de jets de 7m (3 jets puis but en or)"]

{"sheet":"Table de marque","index":5,"n_rows":44,"n_cols":32,"rows_kept":44,"cut":false,"hidden":false,"merged":[[2,0,2,6],[4,0,36,0],[4,12,36,12],[6,3,6,8],[6,15,6,20],[7,3,7,4],[7,5,7,8],[7,15,7,16],[7,17,7,20],[8,3,8,4],[8,5,8,8],[8,15,8,16],[8,17,8,20],[9,3,9,4],[9,5,9,8],[9,15,9,16],[9,17,9,20],[37,14,37,20],[10,3,10,4],[10,5,10,8],[10,15,10,16],[10,17,10,20],[11,3,11,4],[11,5,11,8],[11,15,11,16],[11,17,11,20],[31,5,31,7],[32,5,32,7],[33,5,33,7],[34,5,34,7],[35,5,35,7]]}
[]
[]
["TOURNOI INTERNATIONAL NOEL STRASBOURG, 2022",null,null,null,null,null,null,null,null,null,null,null,null,null,null,null,"MOINS DE 11 ANS, FILLES\nDIMANCHE 18 DECEMBRE 22"]
["Suivi de la compétition en direct, Résultats et classements mis à jour en temps réel :",null,null,null,null,null,null,null,null,null,null,null,null,null,null,null,null,null,null,null,null,null,"https://www.sshb.fr/TIN2022/2022m11F.html"]
["PREMIERE PHASE : Poule de brassage",null,null,null,null,null,null,null,null,null,null,null,"DEUXIEME PHASE : Poule de Classement"]
[]
[null,null,null,"GYMNASE CS LOUVOIS",null,null,null,null,null,null,null,null,null,null,null,"GYMNASE CS LOUVOIS"]
[null,null,null,"POULE A",null,"POULE B",null,null,null,null,null,null,null,null,null,"POULE ELITE",null,"POULE ESPOIR"]
[null,null,null,{"$f":"equi_11G_PA_1","v":"ATH"},null,{"$f":"equi_11G_PB_1","v":"ESSAHB"}]
[null,null,null,{"$f":"equi_11G_PA_2","v":"BISCHWILLER 2"},null,{"$f":"equi_11G_PB_2","v":"BISCHWILLER 1"}]
[null,null,null,{"$f":"equi_11G_PA_3","v":"SELESTAT AHB"},null,{"$f":"equi_11G_PB_3","v":"HBC VAL DE MODER"},null,null,null,null,null,null,null,null,null,null,null,null,null,null,null,null,null,null,null,null,null,null,"Poule Elite",null,null,"Poule Espoir"]
[null,null,null,{"$f":"equi_11G_PA_4","v":"ASPTT"},null,{"$f":"equi_11G_PB_4","v":"STRASBOURG UC"},null,null,null,null,null,null,null,null,null,null,null,null,null,null,null,null,null,null,null,null,null,"1er",null,null,"1er"]
[null,null,null,null,null,null,null,null,null,null,null,null,null,null,null,null,null,null,null,null,null,null,null,null,null,null,null,"2ème",null,null,"2ème"]
[null,null,null,"GYMNASE CS LOUVOIS 15 Rue Louvois, 67000 Strasbourg",null,null,null,null,null,{"$f":"Score!H9","v":0},{"$f":"Score!I9","v":0},null,null,null,null,"GYMNASE CS LOUVOIS 15 Rue Louvois, 67000 Strasbourg",null,null,null,null,null,null,null,null,null,null,null,"3ème",null,null,"3ème"]
[null,null,null,{"$f":"Score!B10","v":0},null,null,null,null,null,{"$f":"Score!H10","v":0},{"$f":"Score!I10","v":0},null,null,null,null,{"$f":"Score!R10","v":0}]
[null,null,null,{"$f":"Score!B11","v":"Recevants"},{"$f":"Score!C11","v":"Visiteurs"},{"$f":"Score!D11","v":"Sc-R"},{"$f":"Score!E11","v":"Sc-V"},{"$f":"Score!F11","v":"Pt-R"},{"$f":"Score!G11","v":"Pt-V"},{"$f":"Score!H11","v":"Arbitrage"},{"$f":"Score!I11","v":"Sanctions"},null,null,null,null,{"$f":"Score!R11","v":0},{"$f":"Score!S11","v":0},{"$f":"Score!T11","v":"Recevants"},{"$f":"Score!U11","v":"Visiteurs"},{"$f":"Score!V11","v":"Sc-R"},{"$f":"Score!W11","v":"Sc-V"}]
[null,null,{"$f":"Score!A12","v":"Poules"},{"$f":"Score!B12","v":0},{"$f":"Score!C12","v":0},{"$f":"Score!D12","v":0},{"$f":"Score!E12","v":0},{"$f":"Score!F12","v":0},{"$f":"Score!G12","v":0},{"$f":"Score!H12","v":0},{"$f":"Score!I12","v":0},null,null,null,null,{"$f":"Score!R12","v":0},{"$f":"Score!S12","v":0},{"$f":"Score!T12","v":0},{"$f":"Score!U12","v":0},{"$f":"Score!V12","v":0},{"$f":"Score!W12","v":0}]
[null,null,{"$f":"Score!A13","v":"9h00"},{"$f":"Score!B13","v":"ATH"},{"$f":"Score!C13","v":"ASPTT"},null,null,null,null,null,null,null,null,null,{"$f":"Score!R13","v":"13h04"},null,null,null,null,null,null,null,null,null,null,null,null,"4ème",null,null,"4ème"]
[null,null,{"$f":"Score!A14","v":"9h19"},{"$f":"Score!B14","v":"ESSAHB"},{"$f":"Score!C14","v":"STRASBOURG UC"},null,null,null,null,null,null,null,null,null,{"$f":"Score!R14","v":"13h18"}]
[null,null,{"$f":"Score!A15","v":"9h38"},{"$f":"Score!B15","v":"BISCHWILLER 2"},{"$f":"Score!C15","v":"SELESTAT AHB"},null,null,null,null,null,null,null,null,null,{"$f":"Score!R15","v":"13h32"}]
[null,null,{"$f":"Score!A16","v":"9h57"},{"$f":"Score!B16","v":"BISCHWILLER 1"},{"$f":"Score!C16","v":"HBC VAL DE MODER"},null,null,null,null,null,null,null,null,null,{"$f":"Score!R16","v":"13h46"}]
[null,null,{"$f":"Score!A17","v":"10h11"},{"$f":"Score!B17","v":"SELESTAT AHB"},{"$f":"Score!C17","v":"ATH"},null,null,null,null,null,null,null,null,null,{"$f":"Score!R17","v":"14h00"}]
[null,null,{"$f":"Score!A18","v":"10h25"},{"$f":"Score!B18","v":"HBC VAL DE MODER"},{"$f":"Score!C18","v":"ESSAHB"},null,null,null,null,null,null,null,null,null,{"$f":"Score!R18","v":"14h14"}]
[null,null,{"$f":"Score!A19","v":"10h39"},{"$f":"Score!B19","v":"BISCHWILLER 2"},{"$f":"Score!C19","v":"ASPTT"},null,null,null,null,null,null,null,null,null,{"$f":"Score!R19","v":"14h28"}]
[null,null,{"$f":"Score!A20","v":"10h53"},{"$f":"Score!B20","v":"BISCHWILLER 1"},{"$f":"Score!C20","v":"STRASBOURG UC"},null,null,null,null,null,null,null,null,null,{"$f":"Score!R20","v":"14h42"}]
[null,null,{"$f":"Score!A21","v":"11h07"},{"$f":"Score!B21","v":"ATH"},{"$f":"Score!C21","v":"BISCHWILLER 2"},null,null,null,null,null,null,null,null,null,{"$f":"Score!R21","v":"14h56"}]
[null,null,{"$f":"Score!A22","v":"11h21"},{"$f":"Score!B22","v":"ESSAHB"},{"$f":"Score!C22","v":"BISCHWILLER 1"},null,null,null,null,null,null,null,null,null,{"$f":"Score!R22","v":"15h10"}]
[null,null,{"$f":"Score!A23","v":"11h35"},{"$f":"Score!B23","v":"ASPTT"},{"$f":"Score!C23","v":"SELESTAT AHB"},null,null,null,null,null,null,null,null,null,{"$f":"Score!R23","v":"15h24"}]
[null,null,{"$f":"Score!A24","v":"11h47"},{"$f":"Score!B24","v":"STRASBOURG UC"},{"$f":"Score!C24","v":"HBC VAL DE MODER"},null,null,null,null,null,null,null,null,null,{"$f":"Score!R24","v":"15h38"}]
[null,null,null,"Pause repas",null,null,null,null,null,null,null,null,null,null,{"$f":"Score!R25","v":"15h52"},"REMISE DES RECOMPENSES"]
[]
[null,null,null,null,"Poule A","Poule B"]
[null,null,null,"1er"]
[null,null,null,"2ème",null,null,null,null,null,null,null,null,null,null,"ENVOYER LES RESULTATS SOUS CETTE FORME A CES NUMEROS"]
[null,null,null,"3ème",null,null,null,null,null,null,null,null,null,null,"TELEPHONE TABLE DE MARQUE"]
[null,null,null,"4ème",null,null,null,null,null,null,null,null,null,null,777613730]
[null,null,null,null,null,null,null,null,null,null,null,null,null,null,"par exemple Format du SMS"]
[null,null,null,null,null,null,null,null,null,null,null,null,null,null,"M11F - ATH 5 - 8 WISSEMBOURG"]
[]
[]
[]
[]
[]
[null,null,"En cas d'égalité à l'issue des matchs de brassage ou à l'issue des matchs de classement, Goal avérage particuler puis séance de jets de 7m (3 jets puis but en or)"]

{"sheet":"A3-M11F","index":6,"n_rows":44,"n_cols":32,"rows_kept":44,"cut":false,"hidden":false,"merged":[[2,0,2,6],[4,0,36,0],[4,12,36,12],[6,3,6,8],[6,15,6,20],[7,3,7,4],[7,5,7,8],[7,15,7,16],[7,17,7,20],[8,3,8,4],[8,5,8,8],[8,15,8,16],[8,17,8,20],[9,3,9,4],[9,5,9,8],[9,15,9,16],[11,15,11,16],[11,17,11,20],[31,5,31,7],[9,17,9,20],[10,3,10,4],[10,5,10,8],[10,15,10,16],[10,17,10,20],[32,5,32,7],[33,5,33,7],[34,5,34,7],[35,5,35,7],[11,3,11,4],[11,5,11,8]]}
[]
[]
["TOURNOI INTERNATIONAL NOEL STRASBOURG, 2022",null,null,null,null,null,null,null,null,null,null,null,null,null,null,null,"MOINS DE 11 ANS, FILLES\nDIMANCHE 18 DECEMBRE 22"]
["Suivi de la compétition en direct, Résultats et classements mis à jour en temps réel :",null,null,null,null,null,null,null,null,null,null,null,null,null,null,null,null,null,null,null,null,null,"https://www.sshb.fr/TIN2022/2022m11F.html"]
["PREMIERE PHASE : Poule de brassage",null,null,null,null,null,null,null,null,null,null,null,"DEUXIEME PHASE : Poule de Classement"]
[]
[null,null,null,"GYMNASE CS LOUVOIS",null,null,null,null,null,null,null,null,null,null,null,"GYMNASE CS LOUVOIS"]
[null,null,null,"POULE A",null,"POULE B",null,null,null,null,null,null,null,null,null,"POULE ELITE",null,"POULE ESPOIR"]
[null,null,null,{"$f":"equi_11G_PA_1","v":"ATH"},null,{"$f":"equi_11G_PB_1","v":"ESSAHB"}]
[null,null,null,{"$f":"equi_11G_PA_2","v":"BISCHWILLER 2"},null,{"$f":"equi_11G_PB_2","v":"BISCHWILLER 1"}]
[null,null,null,{"$f":"equi_11G_PA_3","v":"SELESTAT AHB"},null,{"$f":"equi_11G_PB_3","v":"HBC VAL DE MODER"},null,null,null,null,null,null,null,null,null,null,null,null,null,null,null,null,null,null,null,null,null,null,"POULE ELITE",null,null,"POULE ESPOIR"]
[null,null,null,{"$f":"equi_11G_PA_4","v":"ASPTT"},null,{"$f":"equi_11G_PB_4","v":"STRASBOURG UC"},null,null,null,null,null,null,null,null,null,null,null,null,null,null,null,null,null,null,null,null,null,"1er",null,null,"1er"]
[null,null,null,null,null,null,null,null,null,null,null,null,null,null,null,null,null,null,null,null,null,null,null,null,null,null,null,"2ème",null,null,"2ème"]
[null,null,null,"GYMNASE CS LOUVOIS 15 Rue Louvois, 67000 Strasbourg",null,null,null,null,null,{"$f":"Score!H9","v":0},{"$f":"Score!I9","v":0},null,null,null,null,"GYMNASE CS LOUVOIS 15 Rue Louvois, 67000 Strasbourg",null,null,null,null,null,null,null,null,null,null,null,"3ème",null,null,"3ème"]
[null,null,null,{"$f":"Score!B10","v":0},null,null,null,null,null,{"$f":"Score!H10","v":0},{"$f":"Score!I10","v":0},null,null,null,null,{"$f":"Score!R10","v":0}]
[null,null,null,{"$f":"Score!B11","v":"Recevants"},{"$f":"Score!C11","v":"Visiteurs"},{"$f":"Score!D11","v":"Sc-R"},{"$f":"Score!E11","v":"Sc-V"},{"$f":"Score!F11","v":"Pt-R"},{"$f":"Score!G11","v":"Pt-V"},{"$f":"Score!H11","v":"Arbitrage"},{"$f":"Score!I11","v":"Sanctions"},null,null,null,null,{"$f":"Score!R11","v":0},{"$f":"Score!S11","v":0},{"$f":"Score!T11","v":"Recevants"},{"$f":"Score!U11","v":"Visiteurs"},{"$f":"Score!V11","v":"Sc-R"},{"$f":"Score!W11","v":"Sc-V"}]
[null,null,{"$f":"Score!A12","v":"Poules"},{"$f":"Score!B12","v":0},{"$f":"Score!C12","v":0},{"$f":"Score!D12","v":0},{"$f":"Score!E12","v":0},{"$f":"Score!F12","v":0},{"$f":"Score!G12","v":0},{"$f":"Score!H12","v":0},{"$f":"Score!I12","v":0},null,null,null,null,{"$f":"Score!R12","v":0},{"$f":"Score!S12","v":0},{"$f":"Score!T12","v":0},{"$f":"Score!U12","v":0},{"$f":"Score!V12","v":0},{"$f":"Score!W12","v":0}]
[null,null,{"$f":"Score!A13","v":"9h00"},{"$f":"Score!B13","v":"ATH"},{"$f":"Score!C13","v":"ASPTT"},null,null,null,null,null,null,null,null,null,{"$f":"Score!R13","v":"13h04"},null,null,null,null,null,null,null,null,null,null,null,null,"4ème",null,null,"4ème"]
[null,null,{"$f":"Score!A14","v":"9h19"},{"$f":"Score!B14","v":"ESSAHB"},{"$f":"Score!C14","v":"STRASBOURG UC"},null,null,null,null,null,null,null,null,null,{"$f":"Score!R14","v":"13h18"}]
[null,null,{"$f":"Score!A15","v":"9h38"},{"$f":"Score!B15","v":"BISCHWILLER 2"},{"$f":"Score!C15","v":"SELESTAT AHB"},null,null,null,null,null,null,null,null,null,{"$f":"Score!R15","v":"13h32"}]
[null,null,{"$f":"Score!A16","v":"9h57"},{"$f":"Score!B16","v":"BISCHWILLER 1"},{"$f":"Score!C16","v":"HBC VAL DE MODER"},null,null,null,null,null,null,null,null,null,{"$f":"Score!R16","v":"13h46"}]
[null,null,{"$f":"Score!A17","v":"10h11"},{"$f":"Score!B17","v":"SELESTAT AHB"},{"$f":"Score!C17","v":"ATH"},null,null,null,null,null,null,null,null,null,{"$f":"Score!R17","v":"14h00"}]
[null,null,{"$f":"Score!A18","v":"10h25"},{"$f":"Score!B18","v":"HBC VAL DE MODER"},{"$f":"Score!C18","v":"ESSAHB"},null,null,null,null,null,null,null,null,null,{"$f":"Score!R18","v":"14h14"}]
[null,null,{"$f":"Score!A19","v":"10h39"},{"$f":"Score!B19","v":"BISCHWILLER 2"},{"$f":"Score!C19","v":"ASPTT"},null,null,null,null,null,null,null,null,null,{"$f":"Score!R19","v":"14h28"}]
[null,null,{"$f":"Score!A20","v":"10h53"},{"$f":"Score!B20","v":"BISCHWILLER 1"},{"$f":"Score!C20","v":"STRASBOURG UC"},null,null,null,null,null,null,null,null,null,{"$f":"Score!R20","v":"14h42"}]
[null,null,{"$f":"Score!A21","v":"11h07"},{"$f":"Score!B21","v":"ATH"},{"$f":"Score!C21","v":"BISCHWILLER 2"},null,null,null,null,null,null,null,null,null,{"$f":"Score!R21","v":"14h56"}]
[null,null,{"$f":"Score!A22","v":"11h21"},{"$f":"Score!B22","v":"ESSAHB"},{"$f":"Score!C22","v":"BISCHWILLER 1"},null,null,null,null,null,null,null,null,null,{"$f":"Score!R22","v":"15h10"}]
[null,null,{"$f":"Score!A23","v":"11h35"},{"$f":"Score!B23","v":"ASPTT"},{"$f":"Score!C23","v":"SELESTAT AHB"},null,null,null,null,null,null,null,null,null,{"$f":"Score!R23","v":"15h24"}]
[null,null,{"$f":"Score!A24","v":"11h47"},{"$f":"Score!B24","v":"STRASBOURG UC"},{"$f":"Score!C24","v":"HBC VAL DE MODER"},null,null,null,null,null,null,null,null,null,{"$f":"Score!R24","v":"15h38"}]
[null,null,null,"Pause repas",null,null,null,null,null,null,null,null,null,null,{"$f":"Score!R25","v":"15h52"},"REMISE DES RECOMPENSES"]
[]
[null,null,null,null,"Poule A","Poule B"]
[null,null,null,"1er"]
[null,null,null,"2ème"]
[null,null,null,"3ème"]
[null,null,null,"4ème"]
[]
[]
[]
[]
[]
[]
[null,null,null,null,null,null,null,null,null,null,null,null,null,null,"Qrcode généré par Unitag"]
[null,null,"En cas d'égalité à l'issue des matchs de brassage ou à l'issue des matchs de classement, Goal avérage particuler puis séance de jets de 7m (3 jets puis but en or)"]